bitfinex/quotes_BTCUSD_20250602
["timestamp","ask_amount","ask_price","bid_price","bid_amount"]
[1748832802421,2.24620787,105120.0,105110.0,0.01297665]
[1748832803032,1.61098677,105120.0,105110.0,0.01297665]
[1748832803236,2.12158793,105120.0,105110.0,0.01297665]
[1748832803441,2.15371076,105120.0,105110.0,0.01297665]
[1748832807577,1.7426362,105120.0,105110.0,0.01297665]
[1748832810666,1.7526362,105120.0,105110.0,0.01297665]
[1748832812015,1.75264363,105120.0,105110.0,0.01297665]
[1748832812631,1.84515485,105120.0,105110.0,0.01297665]
[1748832812803,1.75264363,105120.0,105110.0,0.01297665]
[1748832813807,2.24524363,105120.0,105110.0,0.01297665]
[1748832816342,2.24524335,105120.0,105110.0,0.01297665]
[1748832817237,2.23126335,105120.0,105110.0,0.01297665]
[1748832820947,2.23126474,105120.0,105110.0,0.01297665]
[1748832822606,2.34007596,105120.0,105110.0,0.00244954]
[1748832822825,0.5493238,105100.0,105090.0,0.0313]
[1748832823037,0.97561125,105100.0,105090.0,0.0313]
[1748832823257,1.29557144,105100.0,105090.0,0.0313]
[1748832824324,1.29557144,105100.0,105090.0,0.0323]
[1748832825424,0.88519118,105100.0,105090.0,0.0323]
[1748832825629,1.27267118,105100.0,105090.0,0.0323]
[1748832826061,1.27367118,105100.0,105090.0,0.0323]
[1748832827526,1.29278193,105100.0,105090.0,0.0323]
[1748832827949,1.30224201,105100.0,105090.0,0.0323]
[1748832829866,1.36794798,105100.0,105090.0,0.016]
[1748832830076,1.36794798,105100.0,105090.0,0.001]
[1748832831757,1.30224201,105100.0,105090.0,0.001]
[1748832833810,1.30224201,105100.0,105090.0,0.0165]
[1748832836941,1.30224201,105100.0,105090.0,0.0315]
[1748832840909,0.98349153,105100.0,105090.0,0.0315]
[1748832841119,1.30224201,105100.0,105090.0,0.0315]
[1748832843607,0.91476201,105100.0,105090.0,0.0315]
[1748832843817,1.30092201,105100.0,105090.0,0.0315]
[1748832845275,1.61966835,105100.0,105090.0,0.0315]
[1748832848096,1.61020827,105100.0,105090.0,0.0315]
[1748832848968,0.67839145,105100.0,105090.0,0.0315]
[1748832849176,1.31588827,105100.0,105090.0,0.0315]
[1748832849389,1.60980827,105100.0,105090.0,0.0315]
[1748832849614,0.5674407,105100.0,105090.0,0.0315]
[1748832849833,0.6421638,105100.0,105090.0,0.04932295]
[1748832850062,1.29420147,105100.0,105090.0,0.04932253]
[1748832850311,1.29420147,105100.0,105090.0,0.03818435]
[1748832850525,1.29420147,105100.0,105090.0,0.05600933]
[1748832850739,1.29420147,105100.0,105090.0,0.05600935]
[1748832850949,1.29420147,105100.0,105090.0,0.04932498]
[1748832851164,1.29420147,105100.0,105090.0,0.04932505]
[1748832851374,1.29420147,105100.0,105090.0,0.04933319]
[1748832851585,1.29420147,105100.0,105090.0,0.0315]
[1748832851782,1.29420147,105100.0,105090.0,0.04932471]
[1748832852421,1.29420147,105100.0,105090.0,0.04932469]
[1748832852835,1.29420147,105100.0,105090.0,0.04932231]
[1748832853278,1.29420147,105100.0,105090.0,0.0315]
[1748832854167,0.99752567,105100.0,105090.0,0.31766736]
[1748832854392,0.001,105100.0,105090.0,0.66800625]
[1748832854608,0.001,105100.0,105090.0,0.97962542]
[1748832855028,0.001,105100.0,105090.0,1.00412406]
[1748832855240,0.001,105100.0,105090.0,0.66087701]
[1748832855480,0.001,105100.0,105090.0,0.68561051]
[1748832855684,0.001,105100.0,105090.0,0.97945051]
[1748832855864,0.001,105100.0,105090.0,1.04945051]
[1748832856085,0.001,105100.0,105090.0,1.07394631]
[1748832856289,0.001,105100.0,105090.0,1.06722357]
[1748832856494,0.001,105100.0,105090.0,1.07390352]
[1748832856725,0.001,105100.0,105090.0,1.04941051]
[1748832857047,0.001,105100.0,105090.0,1.06722362]
[1748832857241,0.001,105100.0,105090.0,1.04941051]
[1748832857647,0.001,105100.0,105090.0,1.06722074]
[1748832857851,0.001,105100.0,105090.0,1.04941051]
[1748832858066,0.001,105100.0,105090.0,1.06722071]
[1748832858261,0.001,105100.0,105090.0,1.04941051]
[1748832858766,0.001,105100.0,105090.0,1.04940994]
[1748832858975,0.001,105100.0,105090.0,1.06722012]
[1748832859181,0.001,105100.0,105090.0,1.04940994]
[1748832859765,0.001,105100.0,105090.0,0.73067644]
[1748832859968,0.001,105100.0,105090.0,0.73735424]
[1748832860172,0.001,105100.0,105090.0,0.46156175]
[1748832860313,0.001,105100.0,105090.0,0.73083644]
[1748832860538,0.001,105100.0,105090.0,1.04936994]
[1748832860937,0.001,105100.0,105090.0,1.07389244]
[1748832861187,0.001,105100.0,105090.0,0.73083644]
[1748832861346,0.001,105100.0,105090.0,0.74867116]
[1748832861681,0.001,105100.0,105090.0,0.73083644]
[1748832862495,0.001,105100.0,105090.0,0.75535909]
[1748832862701,0.001,105100.0,105090.0,0.73083644]
[1748832863098,0.001,105100.0,105090.0,0.74867109]
[1748832863302,0.001,105100.0,105090.0,0.73083644]
[1748832863674,0.001,105100.0,105090.0,1.06720449]
[1748832863871,0.001,105100.0,105090.0,1.04936994]
[1748832864075,0.001,105100.0,105090.0,1.05605785]
[1748832864296,0.001,105100.0,105090.0,1.04936994]
[1748832864987,0.001,105100.0,105090.0,1.06720411]
[1748832865205,0.001,105100.0,105090.0,1.04936994]
[1748832865647,0.001,105100.0,105090.0,0.73752425]
[1748832865850,0.001,105100.0,105090.0,1.04936994]
[1748832866363,0.001,105100.0,105090.0,1.04968994]
[1748832866568,0.001,105100.0,105090.0,1.05637775]
[1748832866773,0.001,105100.0,105090.0,1.04968994]
[1748832868009,0.001,105100.0,105090.0,1.07421193]
[1748832868671,0.001,105100.0,105090.0,1.06744886]
[1748832868869,0.001,105100.0,105090.0,1.06744862]
[1748832869017,0.001,105100.0,105090.0,1.07410812]
[1748832869247,0.001,105100.0,105090.0,1.07410808]
[1748832869475,0.001,105100.0,105090.0,1.07410807]
[1748832869858,0.001,105100.0,105090.0,1.07410676]
[1748832870086,0.001,105100.0,105090.0,1.05634812]
[1748832870254,0.001,105100.0,105090.0,1.04968994]
[1748832870462,0.001,105100.0,105090.0,1.0672851]
[1748832870660,0.001,105100.0,105090.0,1.04952994]
[1748832871277,0.001,105100.0,105090.0,1.0672851]
[1748832871476,0.001,105100.0,105090.0,1.04952994]
[1748832872544,0.001,105100.0,105090.0,1.06728509]
[1748832872693,0.001,105100.0,105090.0,1.07394327]
[1748832873186,0.001,105100.0,105090.0,0.78002748]
[1748832873388,0.001,105100.0,105090.0,1.07406748]
[1748832874727,0.001,105100.0,105090.0,1.07407293]
[1748832874928,0.001,105100.0,105090.0,1.07407287]
[1748832875339,0.001,105100.0,105090.0,1.07407286]
[1748832875519,0.001,105100.0,105090.0,1.07391286]
[1748832875943,0.001,105100.0,105090.0,0.75537936]
[1748832876317,0.001,105100.0,105090.0,1.07391675]
[1748832876531,0.001,105100.0,105090.0,1.07392396]
[1748832878002,0.001,105100.0,105090.0,1.07392525]
[1748832878218,0.001,105100.0,105090.0,1.07392522]
[1748832878639,0.001,105100.0,105090.0,1.07392633]
[1748832879049,0.001,105100.0,105090.0,1.06702011]
[1748832879250,0.001,105100.0,105090.0,0.78004633]
[1748832879700,0.01051393,105100.0,105090.0,1.07364633]
[1748832879915,0.01051393,105100.0,105090.0,1.07365536]
[1748832880136,0.01051393,105100.0,105090.0,1.04920991]
[1748832880366,0.01051393,105100.0,105090.0,1.06698914]
[1748832880618,0.01051393,105100.0,105090.0,1.06698912]
[1748832880848,0.01051393,105100.0,105090.0,0.44374448]
[1748832881068,0.01051393,105100.0,105090.0,0.75504598]
[1748832881288,0.02002804,105100.0,105090.0,0.75500599]
[1748832881731,0.02002804,105100.0,105090.0,0.74000599]
[1748832881946,0.02002804,105100.0,105090.0,0.44652599]
[1748832882208,0.04857154,105100.0,105090.0,0.43702995]
[1748832882438,0.03905752,105100.0,105090.0,0.72456561]
[1748832882650,0.02002849,105100.0,105090.0,0.7096118]
[1748832882866,0.0200284,105100.0,105090.0,0.73412313]
[1748832883089,0.01051411,105100.0,105090.0,0.73412318]
[1748832883309,0.01051411,105100.0,105090.0,1.06921141]
[1748832883556,0.001,105100.0,105090.0,1.06921141]
[1748832883755,0.01051402,105100.0,105090.0,1.08521141]
[1748832883955,0.01051402,105100.0,105090.0,0.79169141]
[1748832884159,0.02002822,105100.0,105090.0,1.08537141]
[1748832884363,0.02002822,105100.0,105090.0,1.08536654]
[1748832884637,0.02002822,105100.0,105090.0,1.06754362]
[1748832884838,0.02002822,105100.0,105090.0,1.08536655]
[1748832885041,0.02002822,105100.0,105090.0,1.08536502]
[1748832885448,0.02002822,105100.0,105090.0,1.09427549]
[1748832885693,0.02002822,105100.0,105090.0,1.08536502]
[1748832885917,0.02002822,105100.0,105090.0,1.07827549]
[1748832886109,0.02002822,105100.0,105090.0,1.07827472]
[1748832886344,0.02002822,105100.0,105090.0,1.07827443]
[1748832886551,0.02954242,105100.0,105090.0,1.07827443]
[1748832886765,0.02954242,105100.0,105090.0,1.06936377]
[1748832886989,0.02954242,105100.0,105090.0,1.07827349]
[1748832887471,0.02954242,105100.0,105090.0,0.75968526]
[1748832887888,0.03905698,105100.0,105090.0,0.46600526]
[1748832888071,0.02954242,105100.0,105090.0,0.74302478]
[1748832888320,0.02954242,105100.0,105090.0,0.75193472]
[1748832888534,0.02954242,105100.0,105090.0,0.718522]
[1748832888753,0.02954242,105100.0,105090.0,0.74302466]
[1748832889282,0.02954242,105100.0,105090.0,0.74302456]
[1748832889647,0.02954242,105100.0,105090.0,0.74302451]
[1748832890057,0.02954242,105100.0,105090.0,0.74302409]
[1748832890253,0.03905689,105100.0,105090.0,0.74302408]
[1748832890455,0.02954242,105100.0,105090.0,0.73411418]
[1748832890698,0.02954242,105100.0,105090.0,0.70961194]
[1748832890887,0.02954251,105100.0,105090.0,0.73411412]
[1748832891049,0.02954242,105100.0,105090.0,0.743024]
[1748832891270,0.03905698,105100.0,105090.0,0.743024]
[1748832891524,0.02954242,105100.0,105090.0,0.743024]
[1748832891726,0.02954242,105100.0,105090.0,0.74302402]
[1748832892795,0.02954242,105100.0,105090.0,0.71629435]
[1748832893000,0.02954242,105100.0,105090.0,0.7430241]
[1748832893208,0.02954242,105100.0,105090.0,0.7427041]
[1748832893418,0.02954242,105100.0,105090.0,0.4495041]
[1748832893634,0.02954242,105100.0,105090.0,0.73598167]
[1748832893791,0.02954242,105100.0,105090.0,0.7248443]
[1748832893994,0.02954242,105100.0,105090.0,0.74266421]
[1748832894576,0.02002813,105100.0,105090.0,0.74266421]
[1748832894799,0.02002813,105100.0,105090.0,0.72484433]
[1748832895009,0.02954242,105100.0,105090.0,0.7426643]
[1748832895216,0.02002813,105100.0,105090.0,0.7579643]
[1748832895668,0.02002813,105100.0,105090.0,0.75796441]
[1748832895904,0.02002813,105100.0,105090.0,0.75796462]
[1748832896123,0.02002813,105100.0,105090.0,0.75796459]
[1748832896322,0.02002813,105100.0,105090.0,0.75796426]
[1748832896736,0.02002813,105100.0,105090.0,0.75796435]
[1748832897384,0.02954242,105100.0,105090.0,0.75796438]
[1748832897578,0.02002813,105100.0,105090.0,0.7579646]
[1748832897788,0.02002813,105100.0,105090.0,0.74010474]
[1748832898023,0.02954233,105100.0,105090.0,0.75792509]
[1748832898234,0.02002813,105100.0,105090.0,0.75792509]
[1748832898450,0.02002813,105100.0,105090.0,0.7579251]
[1748832899270,0.02002813,105100.0,105090.0,0.77332511]
[1748832899271,0.01051402,105100.0,105090.0,0.77332511]
[1748832899481,0.001,105100.0,105090.0,0.75773208]
[1748832899717,0.001,105100.0,105090.0,0.76441462]
[1748832900135,0.001,105100.0,105090.0,1.08298789]
[1748832900555,0.0435672,105110.0,105100.0,0.20932416]
[1748832900756,0.05025345,105110.0,105100.0,0.33272518]
[1748832900977,0.05025345,105110.0,105100.0,0.30822251]
[1748832901212,0.05025345,105110.0,105100.0,0.29870804]
[1748832901419,0.06555345,105110.0,105100.0,0.35175545]
[1748832901832,0.06755345,105110.0,105100.0,0.35175578]
[1748832902028,0.04473979,105110.0,105100.0,0.36127007]
[1748832902250,0.04473979,105110.0,105100.0,0.35175609]
[1748832902477,0.05425345,105110.0,105100.0,0.34224162]
[1748832902675,0.05425345,105110.0,105100.0,0.35175609]
[1748832902875,0.05425345,105110.0,105100.0,0.3517561]
[1748832903097,0.05425336,105110.0,105100.0,0.36127048]
[1748832903303,0.05425336,105110.0,105100.0,0.36127141]
[1748832903544,0.05425336,105110.0,105100.0,0.35175734]
[1748832903758,0.05425336,105110.0,105100.0,0.35175731]
[1748832904167,0.05425336,105110.0,105100.0,0.36127169]
[1748832904382,0.05425336,105110.0,105100.0,0.35175739]
[1748832904601,0.05425336,105110.0,105100.0,0.3367661]
[1748832904817,0.04473979,105110.0,105100.0,0.35175844]
[1748832905323,0.04473979,105110.0,105100.0,0.35175874]
[1748832905536,0.04473979,105110.0,105100.0,0.35822898]
[1748832905742,0.0202,105110.0,105100.0,0.36127243]
[1748832905940,0.004,105110.0,105100.0,0.37657243]
[1748832906162,0.004,105110.0,105100.0,0.37657413]
[1748832906547,0.004,105110.0,105100.0,0.37657458]
[1748832906769,0.004,105110.0,105100.0,0.35874962]
[1748832906896,0.01351302,105110.0,105100.0,0.37657516]
[1748832907094,0.01351302,105110.0,105100.0,0.37657522]
[1748832907335,0.01351302,105110.0,105100.0,0.36127522]
[1748832907544,0.01351302,105110.0,105100.0,0.37018807]
[1748832907745,0.01351302,105110.0,105100.0,0.37018834]
[1748832908176,0.01351302,105110.0,105100.0,0.36882869]
[1748832908535,0.01351302,105110.0,105100.0,0.36883108]
[1748832908742,0.01351302,105110.0,105100.0,0.3688314]
[1748832908948,0.004,105110.0,105100.0,0.3688314]
[1748832909160,0.004,105110.0,105100.0,0.3854314]
[1748832909592,0.004,105110.0,105100.0,0.3854329]
[1748832910055,0.004,105110.0,105100.0,0.38543284]
[1748832910266,0.004,105110.0,105100.0,0.37651854]
[1748832910474,0.01351302,105110.0,105100.0,0.38543256]
[1748832910894,0.01351302,105110.0,105100.0,0.38543317]
[1748832911146,0.01351302,105110.0,105100.0,0.36983425]
[1748832911360,0.01351302,105110.0,105100.0,0.38543485]
[1748832911541,0.01351302,105110.0,105100.0,0.35869096]
[1748832911688,0.004,105110.0,105100.0,0.38543704]
[1748832911883,0.01351302,105110.0,105100.0,0.37652183]
[1748832912197,0.01351302,105110.0,105100.0,0.38543704]
[1748832912627,0.01351302,105110.0,105100.0,0.38543624]
[1748832912828,0.004,105110.0,105100.0,0.38543624]
[1748832913036,0.01351302,105110.0,105100.0,0.38543624]
[1748832913236,0.01351302,105110.0,105100.0,0.6861466]
[1748832913428,0.01351302,105110.0,105100.0,0.70397632]
[1748832913778,0.01351302,105110.0,105100.0,0.35200499]
[1748832913989,0.01351302,105110.0,105100.0,0.38543601]
[1748832914356,0.01351302,105110.0,105100.0,0.38543558]
[1748832914739,0.02302622,105110.0,105100.0,0.38543558]
[1748832914978,0.01351302,105110.0,105100.0,0.38543558]
[1748832915176,0.01351302,105110.0,105100.0,0.38543556]
[1748832915388,0.01351302,105110.0,105100.0,0.38543482]
[1748832915883,0.01351302,105110.0,105100.0,0.38543468]
[1748832916023,0.004,105110.0,105100.0,0.70397515]
[1748832916256,0.004,105110.0,105100.0,0.67054546]
[1748832916457,0.004,105110.0,105100.0,0.70397352]
[1748832916965,0.01351302,105110.0,105100.0,0.70397351]
[1748832917385,0.004,105110.0,105100.0,0.7039729]
[1748832917585,0.004,105110.0,105100.0,0.70397218]
[1748832917822,0.004,105110.0,105100.0,0.70397217]
[1748832918256,0.004,105110.0,105100.0,0.38543089]
[1748832918674,0.004,105110.0,105100.0,0.38238696]
[1748832918874,0.004,105110.0,105100.0,0.38543085]
[1748832919045,0.01351302,105110.0,105100.0,0.67855062]
[1748832919244,0.02302622,105110.0,105100.0,0.67854983]
[1748832919451,0.01351302,105110.0,105100.0,0.67854983]
[1748832919649,0.01351302,105110.0,105100.0,0.67854984]
[1748832919983,0.01351302,105110.0,105100.0,0.66295157]
[1748832920182,0.01351302,105110.0,105100.0,0.67186453]
[1748832920368,0.01351302,105110.0,105100.0,0.64512495]
[1748832920570,0.01351302,105110.0,105100.0,0.66072293]
[1748832920785,0.01351302,105110.0,105100.0,0.6696361]
[1748832921000,0.01351302,105110.0,105100.0,0.67854924]
[1748832921206,0.004,105110.0,105100.0,0.66072295]
[1748832921422,0.01351302,105110.0,105100.0,0.67854897]
[1748832921635,0.01351302,105110.0,105100.0,0.67854877]
[1748832922047,0.01351302,105110.0,105100.0,0.99708924]
[1748832922253,0.01351302,105110.0,105100.0,0.99040437]
[1748832922454,0.01351302,105110.0,105100.0,0.96366542]
[1748832922723,0.01351302,105110.0,105100.0,0.99708903]
[1748832922922,0.01351302,105110.0,105100.0,0.67854856]
[1748832923556,0.01351302,105110.0,105100.0,0.67854842]
[1748832923557,0.004,105110.0,105100.0,0.67854842]
[1748832923760,0.004,105110.0,105100.0,0.68613548]
[1748832923987,0.004,105110.0,105100.0,0.69504841]
[1748832924190,0.004,105110.0,105100.0,0.67854845]
[1748832925222,0.004,105110.0,105100.0,0.67854847]
[1748832925426,0.004,105110.0,105100.0,0.67854834]
[1748832925570,0.004,105110.0,105100.0,0.67854856]
[1748832925770,0.004,105110.0,105100.0,0.67854867]
[1748832925983,0.01351311,105110.0,105100.0,0.67854875]
[1748832926430,0.01351311,105110.0,105100.0,0.67854864]
[1748832926630,0.004,105110.0,105100.0,0.64512495]
[1748832926832,0.004,105110.0,105100.0,0.678549]
[1748832927161,0.004,105110.0,105100.0,0.67854897]
[1748832927804,0.004,105110.0,105100.0,0.6785491]
[1748832928019,0.01351311,105110.0,105100.0,0.6785491]
[1748832928232,0.004,105110.0,105100.0,0.6785491]
[1748832928446,0.004,105110.0,105100.0,0.67854925]
[1748832928652,0.004,105110.0,105100.0,0.67855047]
[1748832929943,0.004,105110.0,105100.0,0.66195047]
[1748832930184,0.004,105110.0,105100.0,0.66195083]
[1748832930402,0.004,105110.0,105100.0,0.66195094]
[1748832930597,0.004,105110.0,105100.0,0.67825095]
[1748832931071,0.01351302,105110.0,105100.0,0.67825095]
[1748832931486,0.01351302,105110.0,105100.0,0.67825106]
[1748832931704,0.01351302,105110.0,105100.0,0.67825149]
[1748832932146,0.02302622,105110.0,105100.0,0.36883149]
[1748832932367,0.04501302,105110.0,105100.0,0.66191226]
[1748832932571,0.05452622,105110.0,105100.0,0.66191226]
[1748832932778,0.04501302,105110.0,105100.0,0.6552268]
[1748832932986,0.04501302,105110.0,105100.0,0.66191226]
[1748832933622,0.04501302,105110.0,105100.0,0.66191297]
[1748832933856,0.06403933,105110.0,105100.0,0.65239912]
[1748832934063,0.3825798,105110.0,105100.0,0.66191287]
[1748832934281,0.35404047,105110.0,105100.0,0.66191287]
[1748832934482,0.04501311,105110.0,105100.0,0.66191287]
[1748832934689,0.04501311,105110.0,105100.0,0.66191368]
[1748832935102,0.04501311,105110.0,105100.0,0.63517041]
[1748832935282,0.04501311,105110.0,105100.0,0.65299926]
[1748832935603,0.04501311,105110.0,105100.0,0.66191416]
[1748832935806,0.04501311,105110.0,105100.0,0.67082913]
[1748832936217,0.04501311,105110.0,105100.0,0.65299989]
[1748832936454,0.04501311,105110.0,105100.0,0.67082971]
[1748832936655,0.05452631,105110.0,105100.0,0.67082992]
[1748832937270,0.05452631,105110.0,105100.0,0.67083068]
[1748832937476,0.03942631,105110.0,105100.0,0.6552293]
[1748832937714,0.03942631,105110.0,105100.0,0.6708308]
[1748832938182,0.0204,105110.0,105100.0,0.6708308]
[1748832938424,0.02991311,105110.0,105100.0,0.6708308]
[1748832938658,0.02991311,105110.0,105100.0,0.67083138]
[1748832938891,0.02991311,105110.0,105100.0,0.64408537]
[1748832939131,0.02991311,105110.0,105100.0,0.67083167]
[1748832939355,0.02991311,105110.0,105100.0,0.67083239]
[1748832939588,0.0204,105110.0,105100.0,0.98937305]
[1748832939834,0.01351302,105110.0,105100.0,0.96485508]
[1748832940069,0.01351302,105110.0,105100.0,0.67083252]
[1748832940287,0.01351302,105110.0,105100.0,0.95593948]
[1748832940499,0.01351302,105110.0,105100.0,0.98045772]
[1748832941114,0.01351302,105110.0,105100.0,0.98268665]
[1748832941383,0.01351302,105110.0,105100.0,0.98937375]
[1748832941633,0.004,105110.0,105100.0,0.95593948]
[1748832941847,0.004,105110.0,105100.0,0.98045815]
[1748832942065,0.004,105110.0,105100.0,0.96262639]
[1748832942491,0.01351302,105110.0,105100.0,0.96262653]
[1748832943639,0.004,105110.0,105100.0,0.96262653]
[1748832944059,0.004,105110.0,105100.0,0.98045917]
[1748832944423,0.004,105110.0,105100.0,0.97377212]
[1748832944629,0.004,105110.0,105100.0,0.98045962]
[1748832945017,0.004,105110.0,105100.0,0.96262697]
[1748832945269,0.004,105110.0,105100.0,0.98046223]
[1748832945704,0.004,105110.0,105100.0,0.98046204]
[1748832946957,0.004,105110.0,105100.0,0.96262745]
[1748832947173,0.004,105110.0,105100.0,0.98046191]
[1748832947385,0.004,105110.0,105100.0,0.98046172]
[1748832947597,0.004,105110.0,105100.0,0.96262736]
[1748832947839,0.004,105110.0,105100.0,0.98046172]
[1748832948054,0.004,105110.0,105100.0,0.6873815]
[1748832948269,0.004,105110.0,105100.0,0.98046091]
[1748832948650,0.004,105110.0,105100.0,0.98046069]
[1748832949270,0.004,105110.0,105100.0,0.98046018]
[1748832949473,0.004,105110.0,105100.0,0.98046014]
[1748832950117,0.01351302,105110.0,105100.0,0.66191967]
[1748832950321,0.004,105110.0,105100.0,0.66191967]
[1748832950524,0.004,105110.0,105100.0,0.95593944]
[1748832950711,0.004,105110.0,105100.0,0.9626268]
[1748832950930,0.0193,105110.0,105100.0,0.98045977]
[1748832951659,0.02881311,105110.0,105100.0,0.97377241]
[1748832951869,0.0193,105110.0,105100.0,0.98045969]
[1748832952302,0.0193,105110.0,105100.0,0.97741537]
[1748832952509,0.0193,105110.0,105100.0,0.98045922]
[1748832953180,0.0193,105110.0,105100.0,0.97377199]
[1748832953623,0.0193,105110.0,105100.0,0.99829146]
[1748832953839,0.0193,105110.0,105100.0,0.98045903]
[1748832954569,0.0193,105110.0,105100.0,0.98045898]
[1748832955314,0.0193,105110.0,105100.0,0.98045876]
[1748832955764,0.0193,105110.0,105100.0,0.98045873]
[1748832956433,0.0193,105110.0,105100.0,0.9804587]
[1748832957041,0.004,105110.0,105100.0,0.9804587]
[1748832957244,0.004,105110.0,105100.0,0.98045866]
[1748832957449,0.004,105110.0,105100.0,0.9804585]
[1748832958066,0.004,105110.0,105100.0,0.98045849]
[1748832958403,0.004,105110.0,105100.0,0.97741454]
[1748832958606,0.004,105110.0,105100.0,0.98045838]
[1748832959226,0.004,105110.0,105100.0,0.96262641]
[1748832959437,0.004,105110.0,105100.0,0.98045832]
[1748832959649,0.004,105110.0,105100.0,0.9804583]
[1748832961047,0.004,105110.0,105100.0,0.98045829]
[1748832961253,0.004,105110.0,105100.0,0.98045827]
[1748832962385,0.004,105110.0,105100.0,0.98045828]
[1748832962780,0.004,105110.0,105100.0,0.98045829]
[1748832963189,0.004,105110.0,105100.0,0.98045828]
[1748832963416,0.004,105110.0,105100.0,0.98045821]
[1748832964695,0.004,105110.0,105100.0,0.98045824]
[1748832964914,0.004,105110.0,105100.0,0.95593943]
[1748832965141,0.01351302,105110.0,105100.0,0.66187756]
[1748832965361,0.0197,105110.0,105100.0,0.98041803]
[1748832966005,0.0197,105110.0,105100.0,0.98041834]
[1748832966231,0.0197,105110.0,105100.0,0.98041848]
[1748832966450,0.0197,105110.0,105100.0,0.98041849]
[1748832966926,0.0197,105110.0,105100.0,0.98041848]
[1748832967134,0.004,105110.0,105100.0,0.98041848]
[1748832967510,0.004,105110.0,105100.0,0.98041853]
[1748832967720,0.004,105110.0,105100.0,0.95589943]
[1748832967932,0.004,105110.0,105100.0,0.98041866]
[1748832968395,0.004,105110.0,105100.0,0.9804185]
[1748832968598,0.004,105110.0,105100.0,0.95589943]
[1748832968798,0.004,105110.0,105100.0,0.9804185]
[1748832969542,0.004,105110.0,105100.0,0.97373148]
[1748832969750,0.004,105110.0,105100.0,0.98041863]
[1748832970197,0.004,105110.0,105100.0,0.96258649]
[1748832970406,0.004,105110.0,105100.0,0.98041862]
[1748832970823,0.004,105110.0,105100.0,0.98041863]
[1748832971030,0.004,105110.0,105100.0,0.98041861]
[1748832971392,0.004,105110.0,105100.0,0.96258648]
[1748832971814,0.004,105110.0,105100.0,0.98041863]
[1748832972248,0.563144,105110.0,105100.0,0.32126671]
[1748832972465,0.5821715,105110.0,105100.0,0.32262671]
[1748832972679,0.56314482,105110.0,105100.0,0.32262671]
[1748832972895,0.57768567,105110.0,105100.0,0.03647958]
[1748832973117,0.57768567,105110.0,105100.0,0.04539706]
[1748832973518,0.57768567,105110.0,105100.0,0.0453881]
[1748832973968,0.57768567,105110.0,105100.0,0.01195826]
[1748832974183,0.2591452,105110.0,105100.0,0.05429977]
[1748832974393,0.57768567,105110.0,105100.0,0.24459504]
[1748832974814,0.57768567,105110.0,105100.0,0.24459319]
[1748832975226,0.57768567,105110.0,105100.0,0.24319319]
[1748832975435,0.57768567,105110.0,105100.0,0.2365017]
[1748832975648,0.57768567,105110.0,105100.0,0.24318496]
[1748832975858,0.57768567,105110.0,105100.0,0.23427281]
[1748832976275,0.57768567,105110.0,105100.0,0.23427043]
[1748832976492,0.57768567,105110.0,105100.0,0.20976753]
[1748832976696,0.57768567,105110.0,105100.0,0.23427041]
[1748832976905,0.57768567,105110.0,105100.0,0.23427018]
[1748832977524,0.57768567,105110.0,105100.0,0.22758758]
[1748832977747,0.2591452,105110.0,105100.0,0.52062648]
[1748832977957,0.04481329,105110.0,105100.0,0.64219173]
[1748832978164,0.0543264,105110.0,105100.0,0.6612197]
[1748832978370,0.0543264,105110.0,105100.0,0.65170466]
[1748832978586,0.06383988,105110.0,105100.0,0.63388664]
[1748832978786,0.06383988,105110.0,105100.0,0.64219004]
[1748832979201,0.38238035,105110.0,105100.0,0.65170408]
[1748832979406,0.38238035,105110.0,105100.0,0.65170376]
[1748832979822,0.06383988,105110.0,105100.0,0.65170376]
[1748832980027,0.06383988,105110.0,105100.0,0.65170378]
[1748832980240,0.06383988,105110.0,105100.0,0.65170347]
[1748832980427,0.06383988,105110.0,105100.0,0.65170352]
[1748832980932,0.06383988,105110.0,105100.0,0.64218932]
[1748832981739,0.06383988,105110.0,105100.0,0.61769056]
[1748832982077,0.06383988,105110.0,105100.0,0.64218919]
[1748832982282,0.06383988,105110.0,105100.0,0.64218888]
[1748832982473,0.06383988,105110.0,105100.0,0.65170344]
[1748832983164,0.38238035,105110.0,105100.0,0.66121758]
[1748832983421,0.38238035,105110.0,105100.0,0.65170338]
[1748832983641,0.38238035,105110.0,105100.0,0.62720488]
[1748832983870,0.38238035,105110.0,105100.0,0.65170348]
[1748832984069,0.38238044,105110.0,105100.0,0.65170349]
[1748832984557,0.38238044,105110.0,105100.0,0.33295338]
[1748832984764,0.38238044,105110.0,105100.0,0.43286532]
[1748832984971,0.57265802,105110.0,105100.0,0.43286536]
[1748832985197,0.56314473,105110.0,105100.0,0.43286537]
[1748832985408,0.56314473,105110.0,105100.0,0.43286543]
[1748832985611,0.56314473,105110.0,105100.0,0.13982543]
[1748832985847,0.56314473,105110.0,105100.0,0.43286543]
[1748832986017,0.56314473,105110.0,105100.0,0.13982543]
[1748832986429,0.56314473,105110.0,105100.0,0.1153267]
[1748832986633,0.56314473,105110.0,105100.0,0.13982602]
[1748832987183,0.56314473,105110.0,105100.0,0.1220083]
[1748832987392,0.56314473,105110.0,105100.0,0.13900897]
[1748832987583,0.56314473,105110.0,105100.0,0.14873458]
[1748832987790,0.56314473,105110.0,105100.0,0.12423549]
[1748832987993,0.56314473,105110.0,105100.0,0.14873425]
[1748832988194,0.56314473,105110.0,105100.0,0.14873402]
[1748832988334,0.56314473,105110.0,105100.0,0.13982525]
[1748832988532,0.56314473,105110.0,105100.0,0.14873376]
[1748832988736,0.56314473,105110.0,105100.0,0.13091674]
[1748832988968,0.56314473,105110.0,105100.0,0.14873376]
[1748832989164,0.56314473,105110.0,105100.0,0.14873377]
[1748832989404,0.56314473,105110.0,105100.0,0.14873351]
[1748832989569,0.56314473,105110.0,105100.0,0.13982507]
[1748832990070,0.56314473,105110.0,105100.0,0.13982504]
[1748832990285,0.24460426,105110.0,105100.0,0.12200817]
[1748832990447,0.56314473,105110.0,105100.0,0.13982496]
[1748832990726,0.56314473,105110.0,105100.0,0.12200817]
[1748832992600,0.56314473,105110.0,105100.0,0.11532685]
[1748832992807,0.56314473,105110.0,105100.0,0.12200823]
[1748832993344,0.56314473,105110.0,105100.0,0.12200837]
[1748832993676,0.56314473,105110.0,105100.0,0.13982546]
[1748832993886,0.56314473,105110.0,105100.0,0.13982533]
[1748832994258,0.56314473,105110.0,105100.0,0.11532685]
[1748832994463,0.56314473,105110.0,105100.0,0.12200848]
[1748832994674,0.56314473,105110.0,105100.0,0.13314453]